[Event "15. ročník Dobrovický rapid Tereos TTD a.s."]
[Site "Dobrovice, Czech Republic"]
[Date "2020.02.29"]
[Round "6.4"]
[White "Janicek Jindrich"]
[Black "Suran Jan"]
[Result "1/2-1/2"]
[TimeControl "15m + 3s / tah"]
[WhiteElo "2022"]
[BlackElo "2335"]

1. Nf3 {[%clk 00:15:01]} {[%emt 00:00:03]} g6 {[%clk 00:15:02]} {[%emt
00:00:06]} 2. c4 {[%clk 00:15:01]} {[%emt 00:00:03]} Bg7 {[%clk 00:15:01]}
{[%emt 00:00:03]} 3. Nc3 {[%clk 00:15:03]} {[%emt 00:00:01]} e5 {[%clk
00:14:49]} {[%emt 00:00:15]} 4. d3 {[%clk 00:14:12]} {[%emt 00:00:54]} d6
{[%clk 00:14:37]} {[%emt 00:00:15]} 5. e3 {[%clk 00:14:03]} {[%emt 00:00:12]}
f5 {[%clk 00:14:29]} {[%emt 00:00:11]} 6. Be2 {[%clk 00:14:04]} {[%emt
00:00:02]} Nf6 {[%clk 00:14:31]} {[%emt 00:00:01]} 7. O-O {[%clk 00:14:05]} O-O
{[%clk 00:14:33]} {[%emt 00:00:02]} 8. Qc2 {[%clk 00:13:40]} {[%emt 00:00:27]}
Nc6 {[%clk 00:14:28]} {[%emt 00:00:09]} 9. a3 {[%clk 00:13:38]} {[%emt
00:00:05]} h6 {[%clk 00:13:55]} {[%emt 00:00:36]} 10. Re1 {[%clk 00:13:36]}
{[%emt 00:00:05]} Be6 {[%clk 00:13:45]} {[%emt 00:00:12]} 11. Rb1 {[%clk
00:13:35]} {[%emt 00:00:04]} Qd7 {[%clk 00:13:04]} {[%emt 00:00:44]} 12. b4
{[%clk 00:13:31]} {[%emt 00:00:06]} g5 {[%clk 00:13:01]} {[%emt 00:00:07]} 13.
Nd2 {[%clk 00:13:27]} {[%emt 00:00:07]} Ne7 {[%clk 00:11:59]} {[%emt 00:01:06]}
14. b5 {[%clk 00:11:53]} {[%emt 00:01:37]} g4 {[%clk 00:11:00]} {[%emt
00:01:02]} 15. Bf1 {[%clk 00:11:33]} {[%emt 00:00:23]} h5 {[%clk 00:10:50]}
{[%emt 00:00:13]} 16. a4 {[%clk 00:11:20]} {[%emt 00:00:15]} h4 {[%clk
00:10:40]} {[%emt 00:00:13]} 17. Bb2 {[%clk 00:11:03]} {[%emt 00:00:20]} g3
{[%clk 00:10:04]} {[%emt 00:00:40]} 18. fxg3 {[%clk 00:10:46]} {[%emt
00:00:19]} hxg3 {[%clk 00:10:06]} {[%emt 00:00:01]} 19. h3 {[%clk 00:10:36]}
{[%emt 00:00:13]} Ng6 {[%clk 00:09:48]} {[%emt 00:00:21]} 20. d4 {[%clk
00:10:09]} {[%emt 00:00:30]} Nh4 {[%clk 00:09:22]} {[%emt 00:00:30]} 21. d5
{[%clk 00:09:44]} {[%emt 00:00:28]} Bf7 {[%clk 00:09:22]} {[%emt 00:00:03]} 22.
Bd3 {[%clk 00:09:21]} {[%emt 00:00:25]} Bh6 {[%clk 00:06:55]} {[%emt 00:02:31]}
23. Nd1 {[%clk 00:07:43]} {[%emt 00:01:40]} Nh5 {[%clk 00:05:35]} {[%emt
00:01:24]} 24. Be2 {[%clk 00:06:36]} {[%emt 00:01:09]} f4 {[%clk 00:05:05]}
{[%emt 00:00:34]} 25. Bg4 {[%clk 00:06:33]} {[%emt 00:00:06]} Qe7 {[%clk
00:05:07]} {[%emt 00:00:01]} 26. e4 {[%clk 00:05:25]} {[%emt 00:01:11]} Nf6
{[%clk 00:04:35]} {[%emt 00:00:35]} 27. Bf3 {[%clk 00:05:17]} {[%emt 00:00:11]}
Bg6 {[%clk 00:03:48]} {[%emt 00:00:50]} 28. Qd3 {[%clk 00:05:05]} {[%emt
00:00:14]} Qh7 {[%clk 00:03:13]} {[%emt 00:00:39]} 29. Nc3 {[%clk 00:04:56]}
{[%emt 00:00:12]} Nxf3+ 30. Nxf3 {[%clk 00:04:55]} Nd7 {[%clk 00:02:58]} {[%emt
00:00:07]} 31. Ba3 {[%clk 00:04:52]} {[%emt 00:00:05]} Bh5 {[%clk 00:02:58]}
{[%emt 00:00:04]} 32. Rbc1 {[%clk 00:04:23]} {[%emt 00:00:32]} b6 {[%clk
00:03:00]} {[%emt 00:00:02]} 33. Bb4 {[%clk 00:04:13]} {[%emt 00:00:12]} Qe7
{[%clk 00:02:11]} {[%emt 00:00:52]} 34. Ra1 {[%clk 00:03:58]} {[%emt 00:00:18]}
a5 {[%clk 00:02:11]} {[%emt 00:00:03]} 35. bxa6 {[%clk 00:03:39]} {[%emt
00:00:21]} Nc5 {[%clk 00:01:49]} {[%emt 00:00:26]} 36. Bxc5 {[%clk 00:03:39]}
{[%emt 00:00:03]} bxc5 {[%clk 00:01:51]} {[%emt 00:00:01]} 37. Reb1 {[%clk
00:03:27]} {[%emt 00:00:15]} Rxa6 {[%clk 00:01:52]} {[%emt 00:00:02]} 38. Rb7
{[%clk 00:03:24]} {[%emt 00:00:05]} Rfa8 {[%clk 00:01:53]} {[%emt 00:00:02]} 39.
Rab1 {[%clk 00:03:21]} {[%emt 00:00:07]} R6a7 {[%clk 00:01:40]} {[%emt
00:00:16]} 40. R1b5 {[%clk 00:03:09]} {[%emt 00:00:14]} Bf8 {[%clk 00:01:27]}
{[%emt 00:00:16]} 41. Rxa7 {[%emt 00:00:13]} Rxa7 42. Rb8 {[%clk 00:02:57]}
{[%emt 00:00:04]} Be8 {[%clk 00:01:20]} {[%emt 00:00:15]} 43. Qc2 {[%clk
00:02:53]} {[%emt 00:00:07]} Bh5 {[%clk 00:01:09]} {[%emt 00:00:14]} 44. Qd3
{[%clk 00:02:54]} {[%emt 00:00:02]} Kg7 {[%clk 00:01:03]} {[%emt 00:00:09]} 45.
Rb1 {[%clk 00:02:38]} {[%emt 00:00:19]} Qe8 {[%clk 00:00:49]} {[%emt 00:00:17]}
46. Nh4 {[%clk 00:02:21]} {[%emt 00:00:19]} Kf6 {[%clk 00:00:33]} {[%emt
00:00:19]} 47. Nf3 {[%clk 00:02:09]} {[%emt 00:00:15]} Be7 {[%clk 00:00:33]}
{[%emt 00:00:03]} 48. Rb2 {[%clk 00:02:02]} {[%emt 00:00:10]} Kg7 {[%clk
00:00:34]} {[%emt 00:00:02]} 49. Rb1 {[%clk 00:02:02]} {[%emt 00:00:02]} Qa8
{[%clk 00:00:18]} {[%emt 00:00:19]} 50. Rb2 {[%clk 00:01:33]} {[%emt 00:00:33]}
Be8 {[%clk 00:00:20]} {[%emt 00:00:02]} 51. Qc2 {[%clk 00:01:33]} {[%emt
00:00:02]} Rb7 {[%clk 00:00:20]} {[%emt 00:00:03]} 52. Nb5 {[%clk 00:01:03]}
{[%emt 00:00:33]} Bd8 {[%clk 00:00:22]} {[%emt 00:00:01]} 53. Qd1 {[%clk
00:00:43]} {[%emt 00:00:23]} Rb6 {[%clk 00:00:24]} {[%emt 00:00:02]} 54. Qc2
{[%clk 00:00:24]} {[%emt 00:00:21]} Ra6 {[%clk 00:00:22]} {[%emt 00:00:05]} 55.
Ra2 {[%clk 00:00:25]} {[%emt 00:00:03]} Bh5 {[%clk 00:00:22]} {[%emt 00:00:03]}
56. Nd2 {[%clk 00:00:25]} {[%emt 00:00:02]} Be8 {[%clk 00:00:18]} {[%emt
00:00:07]} 57. Nf3 {[%clk 00:00:26]} {[%emt 00:00:02]} Bg6 {[%clk 00:00:17]}
{[%emt 00:00:04]} 58. Nd2 {[%clk 00:00:26]} {[%emt 00:00:02]} Ra5 {[%clk
00:00:16]} {[%emt 00:00:04]} 59. Kf1 {[%clk 00:00:26]} {[%emt 00:00:03]} Bh5
{[%clk 00:00:17]} {[%emt 00:00:02]} 60. Kg1 {[%clk 00:00:27]} {[%emt 00:00:02]}
Ra6 {[%clk 00:00:17]} {[%emt 00:00:03]} 61. Kf1 {[%clk 00:00:29]} {[%emt
00:00:01]} Ra5 {[%clk 00:00:18]} {[%emt 00:00:03]} 62. Kg1 {[%clk 00:00:31]}
Ra6 {[%clk 00:00:18]} {[%emt 00:00:03]} 63. Kf1 {[%clk 00:00:33]} Ra5 64. Kg1
Ra6 {[%clk 00:00:22]} 65. Kf1 {[%clk 00:00:38]} 1/2-1/2

[Event "15. ročník Dobrovický rapid Tereos TTD a.s."]
[Site "Dobrovice, Czech Republic"]
[Date "2020.02.29"]
[Round "6.5"]
[White "Spirek Adam"]
[Black "Hosticka Frantisek"]
[Result "0-1"]
[TimeControl "15m + 3s / tah"]
[WhiteElo "2015"]
[BlackElo "2106"]

1. e4 {[%clk 00:15:04]} Nf6 {[%clk 00:15:05]} {[%emt 00:00:02]} 2. e5 {[%clk
00:15:02]} {[%emt 00:00:04]} Nd5 {[%clk 00:15:08]} 3. d4 {[%clk 00:15:04]}
{[%emt 00:00:02]} d6 {[%clk 00:15:10]} 4. Nf3 {[%clk 00:15:05]} {[%emt
00:00:02]} Bg4 {[%clk 00:15:11]} {[%emt 00:00:02]} 5. Be2 {[%clk 00:14:46]}
{[%emt 00:00:22]} c6 {[%clk 00:15:12]} {[%emt 00:00:02]} 6. c4 {[%clk
00:14:37]} {[%emt 00:00:11]} Nb6 {[%clk 00:15:09]} {[%emt 00:00:06]} 7. exd6
{[%clk 00:14:37]} {[%emt 00:00:04]} exd6 {[%clk 00:15:11]} {[%emt 00:00:02]} 8.
b3 {[%clk 00:14:13]} {[%emt 00:00:26]} Be7 {[%clk 00:15:10]} {[%emt 00:00:04]}
9. h3 {[%clk 00:14:10]} {[%emt 00:00:06]} Bxf3 {[%clk 00:14:40]} {[%emt
00:00:33]} 10. Bxf3 {[%clk 00:14:07]} {[%emt 00:00:06]} d5 {[%clk 00:14:41]}
{[%emt 00:00:02]} 11. c5 {[%clk 00:13:53]} {[%emt 00:00:18]} Nc8 {[%clk
00:14:43]} 12. O-O {[%clk 00:13:36]} {[%emt 00:00:20]} O-O {[%clk 00:14:45]}
{[%emt 00:00:01]} 13. Bf4 {[%clk 00:13:06]} {[%emt 00:00:33]} Bf6 {[%clk
00:14:35]} {[%emt 00:00:14]} 14. Re1 {[%clk 00:12:28]} {[%emt 00:00:41]} Nd7
{[%clk 00:13:43]} {[%emt 00:00:53]} 15. b4 {[%clk 00:10:48]} {[%emt 00:01:43]}
a5 {[%clk 00:13:35]} {[%emt 00:00:11]} 16. b5 {[%clk 00:08:42]} {[%emt
00:02:10]} Nxc5 {[%clk 00:13:22]} {[%emt 00:00:16]} 17. bxc6 {[%clk 00:08:29]}
{[%emt 00:00:17]} bxc6 {[%clk 00:13:18]} {[%emt 00:00:06]} 18. Nc3 {[%clk
00:07:38]} {[%emt 00:00:54]} Ne6 {[%clk 00:12:43]} {[%emt 00:00:37]} 19. Be5
{[%clk 00:07:03]} {[%emt 00:00:39]} Nb6 {[%clk 00:12:37]} {[%emt 00:00:08]} 20.
Rc1 {[%clk 00:06:22]} {[%emt 00:00:44]} Rc8 {[%clk 00:11:46]} {[%emt 00:00:54]}
21. Na4 {[%clk 00:01:20]} {[%emt 00:05:05]} Nc4 {[%clk 00:11:19]} {[%emt
00:00:29]} 22. Rxc4 {[%clk 00:01:05]} {[%emt 00:00:19]} dxc4 {[%clk 00:11:19]}
{[%emt 00:00:04]} 23. Bxf6 {[%clk 00:00:39]} {[%emt 00:00:28]} Qxf6 {[%clk
00:11:16]} {[%emt 00:00:06]} 24. Nb6 {[%clk 00:00:39]} {[%emt 00:00:03]} Rcd8
{[%clk 00:11:05]} {[%emt 00:00:14]} 25. Bxc6 {[%clk 00:00:27]} {[%emt
00:00:15]} Nf4 {[%clk 00:08:59]} {[%emt 00:02:09]} 26. d5 {[%clk 00:00:24]}
{[%emt 00:00:07]} Nd3 {[%clk 00:08:20]} {[%emt 00:00:42]} 27. Re2 {[%clk
00:00:24]} {[%emt 00:00:02]} Nf4 {[%clk 00:07:56]} {[%emt 00:00:27]} 28. Rd2
{[%clk 00:00:22]} {[%emt 00:00:05]} c3 {[%clk 00:07:52]} {[%emt 00:00:07]} 29.
Rc2 {[%clk 00:00:13]} {[%emt 00:00:12]} Qxc6 {[%clk 00:07:10]} {[%emt
00:00:45]} 30. Qf3 {[%clk 00:00:15]} Qxb6 {[%clk 00:07:03]} {[%emt 00:00:10]}
0-1

[Event "15. ročník Dobrovický rapid Tereos TTD a.s."]
[Site "Dobrovice, Czech Republic"]
[Date "2020.02.29"]
[Round "6.6"]
[White "Kaderabek Jiri"]
[Black "Joukl Zdenek"]
[Result "1-0"]
[TimeControl "15m + 3s / tah"]
[WhiteElo "2105"]
[BlackElo "2022"]

1. c4 {[%clk 00:15:04]} {[%emt 00:00:02]} e5 {[%clk 00:15:00]} {[%emt
00:00:06]} 2. Nc3 {[%clk 00:14:56]} {[%emt 00:00:10]} Nc6 {[%clk 00:14:58]}
{[%emt 00:00:05]} 3. Nf3 {[%clk 00:14:54]} {[%emt 00:00:05]} Nf6 {[%clk
00:14:50]} {[%emt 00:00:11]} 4. e3 {[%clk 00:14:45]} {[%emt 00:00:12]} d6
{[%clk 00:14:09]} {[%emt 00:00:44]} 5. d4 {[%clk 00:14:23]} {[%emt 00:00:26]}
Bg4 {[%clk 00:13:59]} {[%emt 00:00:13]} 6. d5 {[%clk 00:13:44]} {[%emt
00:00:41]} e4 {[%clk 00:12:26]} {[%emt 00:01:35]} 7. dxc6 {[%clk 00:13:28]}
{[%emt 00:00:20]} exf3 {[%clk 00:12:25]} {[%emt 00:00:02]} 8. cxb7 {[%clk
00:12:40]} {[%emt 00:00:53]} Rb8 {[%clk 00:10:48]} {[%emt 00:01:41]} 9. gxf3
{[%clk 00:12:41]} {[%emt 00:00:02]} Bd7 {[%clk 00:10:31]} {[%emt 00:00:20]} 10.
b3 {[%clk 00:11:47]} {[%emt 00:00:56]} Rxb7 {[%clk 00:09:19]} {[%emt 00:01:15]}
11. Bb2 {[%clk 00:11:35]} {[%emt 00:00:15]} Be7 {[%clk 00:08:31]} {[%emt
00:00:51]} 12. Rg1 {[%clk 00:11:11]} {[%emt 00:00:27]} Kf8 {[%clk 00:06:43]}
{[%emt 00:01:52]} 13. Qd4 {[%clk 00:09:39]} {[%emt 00:01:34]} a5 {[%clk
00:04:31]} {[%emt 00:02:16]} 14. Bd3 {[%clk 00:08:17]} {[%emt 00:01:25]} a4
{[%clk 00:04:18]} {[%emt 00:00:16]} 15. Bc2 {[%clk 00:08:04]} {[%emt 00:00:16]}
h6 {[%clk 00:02:51]} {[%emt 00:01:29]} 16. Ke2 {[%clk 00:08:05]} {[%emt
00:00:02]} Rg8 {[%clk 00:02:26]} {[%emt 00:00:29]} 17. Rg2 {[%clk 00:07:11]}
{[%emt 00:00:58]} c5 {[%clk 00:02:04]} {[%emt 00:00:24]} 18. Qd3 {[%clk
00:07:04]} {[%emt 00:00:09]} g6 {[%clk 00:01:47]} {[%emt 00:00:20]} 19. Rd1
{[%clk 00:06:11]} {[%emt 00:00:56]} Bf5 {[%clk 00:01:34]} {[%emt 00:00:16]} 20.
Ne4 {[%clk 00:05:06]} {[%emt 00:01:08]} Bxe4 {[%clk 00:01:05]} {[%emt
00:00:32]} 21. fxe4 {[%clk 00:05:07]} {[%emt 00:00:02]} axb3 {[%clk 00:01:06]}
{[%emt 00:00:02]} 22. axb3 {[%clk 00:05:03]} {[%emt 00:00:06]} Qc7 {[%clk
00:00:33]} {[%emt 00:00:36]} 23. Bxf6 {[%clk 00:03:42]} {[%emt 00:01:24]} Bxf6
{[%clk 00:00:32]} {[%emt 00:00:04]} 24. Qxd6+ {[%clk 00:03:44]} {[%emt
00:00:01]} Qxd6 {[%clk 00:00:27]} {[%emt 00:00:09]} 25. Rxd6 {[%clk 00:03:46]}
{[%emt 00:00:01]} Be7 {[%clk 00:00:10]} {[%emt 00:00:20]} 26. Ra6 {[%clk
00:03:35]} {[%emt 00:00:13]} Kg7 {[%clk 00:00:08]} {[%emt 00:00:06]} 27. f4
{[%clk 00:03:15]} {[%emt 00:00:23]} Rd8 {[%clk 00:00:00]} {[%emt 00:00:08]} 28.
f5 {[%clk 00:03:00]} {[%emt 00:00:15]} g5 {[%clk 00:00:00]} 29. e5 {[%clk
00:03:00]} {[%emt 00:00:11]} Rc7 {[%emt 00:00:35]} 1-0

[Event "15. ročník Dobrovický rapid Tereos TTD a.s."]
[Site "Dobrovice, Czech Republic"]
[Date "2020.02.29"]
[Round "6.7"]
[White "Pesek Radomir"]
[Black "Zahorbensky Jaroslav"]
[Result "0-1"]
[TimeControl "15m + 3s / tah"]
[WhiteElo "1999"]
[BlackElo "2105"]

1. c4 {[%clk 00:15:05]} e5 {[%clk 00:15:05]} {[%emt 00:00:02]} 2. Nc3 {[%clk
00:15:06]} {[%emt 00:00:01]} Nf6 {[%clk 00:15:07]} {[%emt 00:00:01]} 3. g3
{[%clk 00:15:08]} {[%emt 00:00:01]} Bb4 {[%clk 00:15:05]} {[%emt 00:00:04]} 4.
Bg2 {[%clk 00:15:10]} {[%emt 00:00:02]} Bxc3 {[%clk 00:15:05]} {[%emt
00:00:03]} 5. bxc3 {[%clk 00:15:12]} {[%emt 00:00:01]} O-O {[%clk 00:15:04]}
{[%emt 00:00:04]} 6. Nf3 {[%clk 00:15:13]} {[%emt 00:00:02]} Re8 {[%clk
00:14:46]} {[%emt 00:00:20]} 7. d3 {[%clk 00:15:15]} {[%emt 00:00:02]} Nc6
{[%clk 00:14:38]} {[%emt 00:00:11]} 8. O-O {[%clk 00:15:16]} {[%emt 00:00:02]}
b6 {[%clk 00:14:35]} {[%emt 00:00:06]} 9. Ba3 {[%clk 00:14:51]} {[%emt
00:00:28]} Bb7 {[%clk 00:14:26]} {[%emt 00:00:12]} 10. c5 {[%clk 00:14:48]}
{[%emt 00:00:06]} e4 {[%clk 00:13:03]} {[%emt 00:01:26]} 11. Ng5 {[%clk
00:14:37]} {[%emt 00:00:14]} Na5 {[%clk 00:10:25]} {[%emt 00:02:41]} 12. Bb4
{[%clk 00:13:55]} {[%emt 00:00:45]} h6 {[%clk 00:10:01]} {[%emt 00:00:28]} 13.
Bxa5 {[%clk 00:12:36]} {[%emt 00:01:22]} hxg5 {[%clk 00:09:45]} {[%emt
00:00:19]} 14. Bb4 {[%clk 00:12:37]} {[%emt 00:00:01]} a5 {[%clk 00:08:58]}
{[%emt 00:00:50]} 15. Ba3 {[%clk 00:12:39]} {[%emt 00:00:01]} b5 {[%clk
00:07:18]} {[%emt 00:01:43]} 16. Qd2 {[%clk 00:12:38]} {[%emt 00:00:04]} g4
{[%clk 00:07:08]} {[%emt 00:00:13]} 17. Bb2 {[%clk 00:12:37]} {[%emt 00:00:03]}
Qe7 {[%clk 00:07:06]} {[%emt 00:00:05]} 18. d4 {[%clk 00:12:37]} {[%emt
00:00:03]} e3 {[%clk 00:06:45]} {[%emt 00:00:24]} 19. fxe3 {[%clk 00:12:38]}
{[%emt 00:00:02]} Bxg2 {[%clk 00:06:47]} {[%emt 00:00:02]} 20. Kxg2 {[%clk
00:12:40]} {[%emt 00:00:01]} Qxe3 {[%clk 00:06:48]} {[%emt 00:00:01]} 21. Qxe3
{[%clk 00:12:33]} {[%emt 00:00:10]} Rxe3 {[%clk 00:06:50]} {[%emt 00:00:01]} 22.
Rae1 {[%clk 00:12:25]} {[%emt 00:00:09]} Rae8 {[%clk 00:06:19]} {[%emt
00:00:35]} 23. Kf2 {[%clk 00:11:55]} {[%emt 00:00:33]} Nd5 {[%clk 00:06:20]}
{[%emt 00:00:02]} 24. Bc1 {[%clk 00:09:15]} {[%emt 00:02:42]} Rxc3 {[%clk
00:06:15]} {[%emt 00:00:08]} 25. Bd2 {[%clk 00:09:17]} Rc2 {[%clk 00:05:47]}
{[%emt 00:00:31]} 26. Bxa5 {[%clk 00:09:14]} {[%emt 00:00:05]} Ra8 {[%clk
00:05:47]} {[%emt 00:00:03]} 27. Bxc7 {[%clk 00:08:35]} {[%emt 00:00:43]} Nxc7
{[%clk 00:05:49]} {[%emt 00:00:01]} 28. Rb1 {[%clk 00:08:31]} {[%emt 00:00:07]}
Raxa2 {[%clk 00:05:49]} {[%emt 00:00:03]} 29. Rfe1 {[%clk 00:08:33]} 0-1